bitfinex-derivatives/quotes_ETHF0:USTF0_20240928
["timestamp","ask_amount","ask_price","bid_price","bid_amount"]
[1727537085161,0.77606,2671.3,2671.2,0.37426]
[1727537086964,0.77606,2671.3,2671.0,0.98160922]
[1727537087172,0.77606,2671.3,2671.2,0.37426]
[1727537089359,0.77606,2671.3,2671.0,0.98160922]
[1727537089568,0.77606,2671.3,2671.2,0.37426]
[1727537090873,0.4018,2671.3,2671.1,0.76767]
[1727537091170,0.4018,2671.3,2671.0,0.98160922]
[1727537091369,0.37426,2671.2,2671.0,0.98160922]
[1727537091673,0.4024,2671.1,2671.0,1.35589922]
[1727537091872,0.7713,2671.1,2671.0,1.35589922]
[1727537094569,1.14558,2671.1,2671.0,1.35589922]
[1727537095070,0.7713,2671.1,2671.0,1.35589922]
[1727537096966,1.14558,2671.1,2671.0,0.98160922]
[1727537097176,0.37429,2671.0,2670.9,1.35590922]
[1727537100272,0.37429,2671.0,2670.9,0.98160922]
[1727537100666,8.67609,2671.0,2670.9,0.98160922]
[1727537100869,0.37431,2670.9,2670.8,0.98160922]
[1727537101074,0.37435,2670.6,2670.5,2.22659008]
[1727537101374,0.37435,2670.6,2670.5,0.98190753]
[1727537101577,1.72435,2670.6,2670.5,0.98190753]
[1727537101779,0.37435,2670.6,2670.5,1.35626753]
[1727537102076,0.78323,2670.8,2670.7,0.37434]
[1727537102369,0.78323,2670.8,2670.7,1.3559803]
[1727537102769,0.37432,2670.8,2670.7,3.1100803]
[1727537102963,0.37432,2670.9,2670.7,3.54144374]
[1727537103166,0.37432,2670.9,2670.8,0.98158027]
[1727537103377,3.6042,2671.0,2670.8,0.98158027]
[1727537103572,3.5821,2671.0,2670.9,1.38548027]
[1727537103979,0.3743,2671.0,2670.9,1.38548027]
[1727537104771,3.5821,2671.0,2670.9,1.38548027]
[1727537105283,3.5821,2671.0,2670.9,0.4039]
[1727537111175,0.3743,2671.0,2670.9,0.4039]
[1727537112772,3.5821,2671.0,2670.9,0.4039]
[1727537114276,0.3743,2671.0,2670.9,0.4039]
[1727537115276,1.31004,2671.0,2670.9,0.4039]
[1727537115479,0.37432,2670.8,2670.7,0.4041]
[1727537115682,0.37432,2670.8,2670.5,2.21636305]
[1727537115683,0.93581,2670.8,2670.5,1.72513027]
[1727537115877,0.37435,2670.6,2670.5,1.73468027]
[1727537116078,0.37435,2670.6,2670.5,1.36548027]
[1727537116378,0.37435,2670.6,2670.4,0.98158027]
[1727537116379,0.37436,2670.5,2670.4,0.98158027]
[1727537116773,0.37438,2670.4,2670.3,2.11236027]
[1727537116978,0.37438,2670.4,2670.3,3.52457637]
[1727537117688,0.37438,2670.4,2670.3,3.52430857]
[1727537117876,0.37438,2670.4,2670.3,3.52429163]
[1727537118573,0.37438,2670.4,2670.3,2.11236027]
[1727537120575,0.37437,2670.5,2670.4,0.37437]
[1727537124982,0.3826,2670.6,2670.5,0.37436]
[1727537125182,3.2078,2670.9,2670.8,0.37432]
[1727537125384,3.2078,2670.9,2670.8,1.72432]
[1727537125583,3.2078,2670.9,2670.8,2.70440587]
[1727537126186,0.3743,2671.0,2670.9,0.37431]
[1727537126490,0.3743,2671.0,2670.8,2.70439587]
[1727537126688,0.3705,2671.2,2670.8,2.70439587]
[1727537126881,0.3743,2671.0,2670.8,2.70439587]
[1727537127396,0.3705,2671.2,2670.9,0.37431]
[1727537127986,0.3743,2671.0,2670.8,2.70439587]
[1727537128786,0.37429,2671.1,2670.9,0.37431]
[1727537128986,0.37429,2671.1,2671.0,0.3709]
[1727537129188,0.37427,2671.2,2671.0,0.74518]
[1727537129486,0.37427,2671.2,2671.1,0.3976]
[1727537129785,0.37427,2671.2,2671.1,0.7894]
[1727537132989,1.72427,2671.2,2671.1,0.3918]
[1727537141307,4.93207,2671.2,2671.1,0.3918]
[1727537145699,5.30937,2671.2,2671.1,0.3918]
[1727537146702,0.37429,2671.0,2670.9,0.3743]
[1727537147092,0.7527,2671.1,2670.8,1.73619587]
[1727537147389,0.7527,2671.1,2670.8,1.36188587]
[1727537147607,1.12699,2671.1,2670.9,0.37431]
[1727537147797,1.12699,2671.1,2670.8,1.36188587]
[1727537147798,1.12699,2671.1,2671.0,0.37429]
[1727537148796,1.12699,2671.1,2670.9,0.3743]
[1727537149400,0.37429,2671.0,2670.9,0.3743]
[1727537151198,0.37429,2671.0,2670.9,0.37431]
[1727537151199,0.3743,2671.0,2670.9,0.37431]
[1727537151798,0.7527,2671.1,2670.9,0.37431]
[1727537151799,1.12699,2671.1,2670.9,0.37431]
[1727537152096,1.12699,2671.1,2670.8,1.36188587]
[1727537152297,0.37429,2671.0,2670.8,1.36188587]
[1727537152703,1.12699,2671.1,2670.9,0.37429]
[1727537152902,1.12699,2671.1,2671.0,0.37429]
[1727537155300,1.12699,2671.1,2670.9,0.3743]
[1727537155301,0.3743,2671.0,2670.9,0.3743]
[1727537157098,1.12699,2671.1,2671.0,0.37429]
[1727537159502,0.7527,2671.1,2670.9,0.37429]
[1727537159811,1.12699,2671.1,2671.0,0.37429]
[1727537160410,0.3743,2671.0,2670.9,0.3743]
[1727537160907,0.37431,2670.9,2670.8,1.73619587]
[1727537161103,0.37431,2671.0,2670.9,0.3743]
[1727537161907,4.33479,2671.1,2671.0,0.37429]
[1727537163412,0.3743,2671.0,2670.9,0.3743]
[1727537163716,4.33479,2671.1,2671.0,0.37429]
[1727537167316,1.12699,2671.1,2671.0,0.37429]
[1727537167518,4.33479,2671.1,2671.0,0.37429]
[1727537168617,4.33479,2671.1,2671.0,1.35437587]
[1727537169414,1.12699,2671.1,2671.0,1.35437587]
[1727537169715,3.9605,2671.1,2671.0,1.35437587]
[1727537169920,3.2078,2671.1,2671.0,1.78644294]
[1727537170215,3.2078,2671.1,2671.0,3.25657175]
[1727537172518,3.58208,2671.1,2671.0,3.25657175]
[1727537173023,0.37428,2671.1,2671.0,3.25657175]
[1727537176115,0.37428,2671.1,2671.0,3.25722207]
[1727537178015,1.72427,2671.2,2671.1,0.37428]
[1727537178216,4.93206,2671.2,2671.1,2.39540577]
[1727537179124,4.93206,2671.2,2671.1,2.76971795]
[1727537179525,4.93206,2671.2,2671.1,1.78708326]
[1727537180318,4.93206,2671.2,2671.1,1.41280326]
[1727537180517,4.93206,2671.2,2671.1,1.78708326]
[1727537180714,4.93206,2671.2,2671.1,1.35692357]
[1727537181019,4.93206,2671.2,2671.1,1.41290803]
[1727537181218,4.93206,2671.2,2671.1,2.88303684]
[1727537181618,4.93206,2671.2,2671.1,1.41290803]
[1727537182025,4.93206,2671.2,2671.1,2.76983992]
[1727537182225,4.93206,2671.2,2671.1,1.41290803]
[1727537182425,4.93206,2671.2,2671.1,2.21600803]
[1727537182818,4.93206,2671.2,2671.1,4.06041684]
[1727537183221,4.93206,2671.2,2671.1,3.68613684]
[1727537183414,4.93206,2671.2,2671.1,2.21600803]
[1727537183926,4.93206,2671.2,2671.1,3.68613684]
[1727537184123,4.5578,2671.2,2671.1,3.57294845]
[1727537184321,4.5578,2671.2,2671.1,3.68613684]
[1727537184519,4.5578,2671.2,2671.1,4.06041684]
[1727537185228,3.2078,2671.2,2671.1,4.06041684]
[1727537185429,3.2078,2671.5,2671.4,0.37424]
[1727537185625,3.2078,2671.5,2671.4,3.26092976]
[1727537185825,3.2078,2671.5,2671.4,4.61092976]
[1727537186922,3.2078,2671.5,2671.4,3.13714803]
[1727537187323,3.2078,2671.5,2671.4,4.11914306]
[1727537188325,3.2078,2671.5,2671.4,1.35623503]
[1727537191235,3.2078,2671.5,2671.4,0.98199503]
[1727537192637,4.93202,2671.5,2671.4,0.98199503]
[1727537195237,4.93202,2671.5,2671.3,1.35624503]
[1727537197434,4.5578,2671.5,2671.3,0.98199503]
[1727537197640,4.93203,2671.5,2671.3,1.35624503]
[1727537198342,1.72423,2671.5,2671.3,1.35624503]
[1727537198536,4.93203,2671.5,2671.4,0.3891]
[1727537199634,3.2078,2671.5,2671.4,0.76334]
[1727537199834,3.58202,2671.5,2671.4,0.3891]
[1727537200030,3.58202,2671.5,2671.4,0.76334]
[1727537203036,3.2078,2671.5,2671.4,0.76334]
[1727537203342,3.2078,2671.5,2671.4,1.74533503]
[1727537204934,3.2078,2671.5,2671.4,3.09533503]
[1727537207747,0.01,2671.6,2671.5,0.37422]
[1727537208645,0.01,2671.6,2671.4,2.72109503]
[1727537208646,0.38421,2671.6,2671.4,3.09532503]
[1727537208848,0.38421,2671.6,2671.4,1.74532503]
[1727537209046,0.01,2671.6,2671.5,0.37422]
[1727537211150,0.01,2671.6,2671.4,1.74532503]
[1727537211450,0.01,2671.6,2671.5,0.37422]
[1727537214242,0.38421,2671.6,2671.4,1.74533503]
[1727537214444,0.38421,2671.6,2671.4,0.76334]
[1727537214853,0.38421,2671.6,2671.4,1.74533503]
[1727537215253,0.38421,2671.6,2671.5,0.37422]
[1727537215957,0.38421,2671.6,2671.4,1.74532503]
[1727537216656,0.01,2671.6,2671.5,0.37422]
[1727537216957,0.01,2671.6,2671.5,1.15492]
[1727537217465,0.38421,2671.6,2671.5,1.15492]
[1727537217665,0.01,2671.6,2671.5,1.15492]
[1727537221366,0.38421,2671.6,2671.5,0.37422]
[1727537221559,0.3899,2671.6,2671.4,1.37109503]
[1727537221767,0.3899,2671.6,2671.5,0.37422]
[1727537221968,0.01,2671.6,2671.5,0.37422]
[1727537223366,0.01,2671.6,2671.5,1.35621503]
[1727537223870,3.2178,2671.6,2671.5,1.35621503]
[1727537224269,0.01,2671.6,2671.5,1.35621503]
[1727537225068,3.2178,2671.6,2671.5,1.35621503]
[1727537225269,0.01,2671.6,2671.5,1.35621503]
[1727537226970,3.2178,2671.6,2671.5,2.76744285]
[1727537227278,0.01,2671.6,2671.5,2.76761676]
[1727537227465,3.2178,2671.6,2671.5,1.35621503]
[1727537227782,0.01,2671.6,2671.5,1.35621503]
[1727537228677,0.01,2671.6,2671.5,2.76783519]
[1727537229175,0.01,2671.6,2671.5,1.78584016]
[1727537229573,0.01,2671.6,2671.5,3.25962189]
[1727537229967,3.2178,2671.6,2671.5,1.78584016]
[1727537230171,3.2178,2671.6,2671.5,3.25962189]
[1727537230172,0.01,2671.6,2671.5,3.25962189]
[1727537230580,3.2178,2671.6,2671.5,3.25962189]
[1727537231575,0.01,2671.6,2671.5,1.78584016]
[1727537232878,0.01,2671.6,2671.5,12.21487583]
[1727537233175,3.2078,2671.9,2671.8,0.37418]
[1727537233382,3.58197,2671.9,2671.8,2.88493048]
[1727537233572,3.97847,2671.9,2671.8,2.88493048]
[1727537233771,3.97847,2671.9,2671.8,0.98212627]
[1727537234867,4.38567,2671.9,2671.8,0.98212627]
[1727537235676,3.615,2671.9,2671.8,1.35630627]
[1727537235880,3.615,2671.9,2671.8,1.78621349]
[1727537236070,3.615,2671.9,2671.8,3.25952381]
[1727537236273,3.615,2671.9,2671.8,1.84749032]
[1727537236583,3.2078,2671.9,2671.8,3.25949291]
[1727537237371,3.2078,2671.9,2671.8,4.60949291]
[1727537238371,0.37415,2672.0,2671.8,4.60949291]
[1727537238578,0.37415,2672.0,2671.9,2.39350084]
[1727537238776,0.37415,2672.0,2671.9,0.98149825]
[1727537239380,9.60974,2672.0,2671.9,0.98149825]
[1727537239585,0.37418,2671.8,2671.7,1.37299825]
[1727537239780,0.37418,2671.8,2671.7,2.78445051]
[1727537239973,0.37418,2671.8,2671.7,1.37299825]
[1727537240473,0.37418,2671.8,2671.7,1.74718825]
[1727537240674,1.1513,2671.9,2671.7,1.74718825]
[1727537240675,1.52548,2671.9,2671.7,1.74718825]
[1727537241979,0.37418,2671.8,2671.7,1.74718825]
[1727537242482,1.52548,2671.9,2671.7,1.74718825]
[1727537245975,4.73328,2671.9,2671.7,1.74718825]
[1727537247381,1.52548,2671.9,2671.7,1.74718825]
[1727537247885,4.73328,2671.9,2671.7,1.74718825]
[1727537248485,1.52548,2671.9,2671.7,1.74718825]
[1727537248878,4.73328,2671.9,2671.7,1.74718825]
[1727537251984,4.73328,2671.9,2671.8,0.37418]
[1727537253585,1.52548,2671.9,2671.8,0.37418]
[1727537253778,4.73328,2671.9,2671.7,1.74718825]
[1727537254487,1.52548,2671.9,2671.7,1.74718825]
[1727537254687,4.73328,2671.9,2671.7,1.74718825]
[1727537255484,4.73328,2671.9,2671.8,0.98149825]
[1727537255785,4.73328,2671.9,2671.8,1.35567825]
[1727537256284,4.73328,2671.9,2671.8,0.37418]
[1727537256483,4.73328,2671.9,2671.8,1.35567825]
[1727537257090,1.52548,2671.9,2671.8,1.35567825]
[1727537257311,4.73328,2671.9,2671.8,1.35567825]
[1727537258078,4.73328,2671.9,2671.8,0.98149825]
[1727537258282,4.73328,2671.9,2671.7,1.37299825]
[1727537258482,4.73328,2671.9,2671.8,0.98149825]
[1727537259687,4.73328,2671.9,2671.8,1.35567825]
[1727537259889,4.73328,2671.9,2671.8,0.37418]
[1727537260192,4.73328,2671.9,2671.8,1.3557506]
[1727537260395,4.73328,2671.9,2671.8,0.37418]
[1727537261094,4.73328,2671.9,2671.7,1.7472606]
[1727537261284,4.3591,2671.9,2671.8,0.9815706]
[1727537261592,4.73327,2671.9,2671.8,0.9815706]
[1727537262485,4.73327,2671.9,2671.8,1.3557506]
[1727537263190,4.73327,2671.9,2671.8,0.9815706]
[1727537264080,4.73327,2671.9,2671.8,1.3557506]
[1727537264286,4.73327,2671.9,2671.8,0.9815706]
[1727537264482,4.73327,2671.9,2671.8,1.3557506]
[1727537265196,4.73327,2671.9,2671.8,0.9815706]
[1727537266499,0.37418,2671.8,2671.7,1.3730706]
[1727537266691,0.37418,2671.8,2671.7,1.80320598]
[1727537266892,0.37418,2671.8,2671.7,2.78494113]
[1727537267200,0.37418,2671.8,2671.7,1.37323515]
[1727537267388,0.37418,2671.8,2671.7,1.74742515]
[1727537267997,0.37418,2671.8,2671.7,3.27657299]
[1727537268199,0.37418,2671.8,2671.7,1.80326267]
[1727537268394,0.37418,2671.8,2671.7,3.27657299]
[1727537268598,0.37418,2671.8,2671.7,2.78509351]
[1727537268794,0.37418,2671.8,2671.7,2.78512825]
[1727537269002,0.37418,2671.8,2671.7,2.78511064]
[1727537269191,0.37418,2671.8,2671.7,1.80326267]
[1727537269392,0.37418,2671.8,2671.7,2.78510919]
[1727537269597,0.37418,2671.8,2671.7,3.27657299]
[1727537269898,0.37418,2671.8,2671.7,2.17745267]
[1727537270097,0.37418,2671.8,2671.7,3.65089565]
[1727537270701,0.37418,2671.8,2671.7,3.15953719]
[1727537270996,0.37418,2671.8,2671.7,3.15953711]
[1727537271196,0.37418,2671.8,2671.7,2.17758533]
[1727537271591,0.37418,2671.8,2671.7,3.65089565]
[1727537272197,0.37418,2671.8,2671.7,2.17758533]
[1727537272702,0.37418,2671.8,2671.7,3.65089565]
[1727537274303,0.37418,2671.8,2671.7,3.27670565]
[1727537274600,0.37418,2671.8,2671.7,3.65089565]
[1727537274899,0.37418,2671.8,2671.7,3.27670565]
[1727537275095,0.37418,2671.8,2671.7,3.65089565]
[1727537275296,0.37418,2671.8,2671.7,3.27670565]
[1727537275699,0.37418,2671.8,2671.7,3.65089565]
[1727537276003,0.37418,2671.8,2671.7,3.27670565]
[1727537277493,0.37418,2671.8,2671.7,3.65089565]
[1727537278306,0.37418,2671.8,2671.7,3.27670565]
[1727537278899,0.37418,2671.8,2671.7,3.65089565]
[1727537279504,0.37418,2671.8,2671.7,3.27670565]
[1727537279705,0.37418,2671.8,2671.7,3.27757904]
[1727537280499,0.37418,2671.8,2671.7,3.65176904]
[1727537286702,3.58198,2671.8,2671.7,3.65176904]
[1727537288010,3.58198,2671.8,2671.7,3.65201168]
[1727537290702,3.58198,2671.8,2671.7,3.27782168]
[1727537292407,3.58198,2671.8,2671.7,3.65201168]
[1727537292607,3.58198,2671.8,2671.7,3.65200273]
[1727537293110,3.58198,2671.8,2671.7,3.65265706]
[1727537293310,3.58198,2671.8,2671.7,3.65266132]
[1727537293508,3.58198,2671.8,2671.7,2.17869241]
[1727537294310,3.58198,2671.8,2671.7,3.65266212]
[1727537294704,3.58198,2671.8,2671.7,3.65266239]
[1727537295510,3.58198,2671.8,2671.7,2.17869241]
[1727537296221,3.58198,2671.8,2671.7,3.65263787]
[1727537296404,3.58198,2671.8,2671.7,2.17869241]
[1727537297418,3.58198,2671.8,2671.7,2.17867267]
[1727537298410,0.37418,2671.8,2671.7,2.17867267]
[1727537298615,3.58198,2671.8,2671.7,2.17867267]
[1727537300518,3.58198,2671.8,2671.7,3.65263323]
[1727537302709,3.58198,2671.8,2671.7,2.17867267]
[1727537303323,3.58198,2671.8,2671.7,3.65265469]
[1727537307018,3.58198,2671.8,2671.7,2.23967202]
[1727537307223,3.58198,2671.8,2671.7,3.65272972]
[1727537307725,3.58198,2671.8,2671.7,2.1787477]
[1727537308113,3.58198,2671.8,2671.7,3.65280695]
[1727537309230,3.58198,2671.8,2671.7,2.1787477]
[1727537311120,0.83242,2672.3,2671.8,0.93546]
[1727537311325,0.46112,2672.3,2672.2,0.9825697]
[1727537311520,3.58192,2672.3,2672.2,0.9825697]
[1727537311824,3.58192,2672.3,2672.2,2.80373763]
[1727537312222,3.58192,2672.3,2672.2,1.3914697]
[1727537312722,4.93192,2672.3,2672.2,1.3914697]
[1727537313523,4.93192,2672.3,2672.2,0.4089]
[1727537323535,0.37415,2672.0,2671.9,0.9825697]
[1727537323730,3.58195,2672.0,2671.9,1.3893697]
[1727537325438,3.58195,2672.0,2671.9,0.4068]
[1727537325738,3.58195,2672.0,2671.9,1.3893697]
[1727537326537,3.58195,2672.0,2671.9,1.7635397]
[1727537330254,3.58195,2672.0,2671.9,1.3893697]
[1727537330437,3.58195,2672.0,2671.9,0.4068]
[1727537330643,3.58195,2672.0,2671.9,1.3893697]
[1727537331139,3.58195,2672.0,2671.9,0.4068]
[1727537331542,3.58195,2672.0,2671.9,1.3893697]
[1727537331745,3.58195,2672.0,2671.9,0.4068]
[1727537331945,3.58195,2672.0,2671.7,2.64634455]
[1727537331946,3.2078,2672.0,2671.7,2.1550597]
[1727537332148,1.7392,2671.9,2671.7,2.5417597]
[1727537332341,1.7392,2671.9,2671.8,0.37418]
[1727537333564,1.72417,2671.9,2671.8,0.37418]
[1727537334746,1.72417,2671.9,2671.7,2.1675697]
[1727537334747,0.37418,2671.8,2671.7,2.1675697]
[1727537334945,1.72418,2671.8,2671.7,1.185]
[1727537335345,1.72418,2671.8,2671.7,1.55919]
[1727537335746,1.72418,2671.8,2671.7,1.185]
[1727537336042,1.72418,2671.8,2671.7,1.55919]
[1727537336441,1.72418,2671.8,2671.7,1.185]
[1727537336944,1.72418,2671.8,2671.7,1.55919]
[1727537337645,1.72418,2671.8,2671.7,1.185]
[1727537339939,0.37418,2671.8,2671.7,1.185]
[1727537340244,0.37418,2671.9,2671.8,0.37418]
[1727537340445,0.37418,2671.9,2671.7,1.55919]
[1727537340652,0.37418,2671.9,2671.7,2.5417597]
[1727537341252,4.5578,2672.0,2671.7,2.1675697]
[1727537341444,4.5578,2672.0,2671.8,0.37417]
[1727537342239,1.35,2671.9,2671.7,2.1675697]
[1727537342449,0.37418,2671.8,2671.7,1.185]
[1727537342952,0.37418,2671.8,2671.7,2.1675697]
[1727537343349,0.37418,2671.8,2671.7,2.5417597]
[1727537343855,0.37418,2671.8,2671.7,1.185]
[1727537344351,0.37418,2671.8,2671.7,0.3867]
[1727537346752,3.58198,2671.8,2671.7,0.3867]
[1727537350959,3.58198,2671.8,2671.7,0.76089]
[1727537351163,3.58198,2671.8,2671.7,0.3867]
[1727537351666,3.58198,2671.8,2671.7,0.784]
[1727537354564,0.37418,2671.8,2671.7,0.784]
[1727537365481,0.37418,2671.8,2671.7,1.7665697]
[1727537367880,1.30964,2671.8,2671.7,1.3692697]
[1727537368184,1.30964,2671.8,2671.5,1.6187897]
[1727537368185,0.37421,2671.6,2671.5,1.6187897]
[1727537368497,3.58201,2671.6,2671.5,1.3567897]
[1727537368681,3.58201,2671.6,2671.5,2.39409394]
[1727537368881,3.58201,2671.6,2671.5,1.3567897]
[1727537369081,3.2078,2671.6,2671.5,2.76831835]
[1727537369286,3.2078,2671.6,2671.5,1.3567897]
[1727537369476,3.2078,2671.6,2671.5,2.76831911]
[1727537369677,3.2078,2671.6,2671.5,3.15241911]
[1727537369874,3.2078,2671.6,2671.5,3.15253459]
[1727537370478,3.58201,2671.6,2671.5,3.15253459]
[1727537372577,0.37421,2671.6,2671.5,2.16996489]
[1727537372775,0.37421,2671.6,2671.5,2.17006044]
[1727537373083,3.582,2671.7,2671.5,3.64391499]
[1727537373282,3.582,2671.7,2671.6,1.3559814]
[1727537373481,3.582,2671.7,2671.6,2.7677947]
[1727537374086,3.582,2671.7,2671.6,2.3935847]
[1727537374284,3.582,2671.7,2671.6,1.4118133]
[1727537374583,3.582,2671.7,2671.6,2.3936622]
[1727537374787,3.582,2671.7,2671.6,1.7860233]
[1727537374999,3.582,2671.7,2671.6,2.88566785]
[1727537377600,3.582,2671.7,2671.6,2.88606993]
[1727537379099,3.582,2671.7,2671.6,3.26027993]
[1727537379398,3.582,2671.7,2671.6,2.88606993]
[1727537381198,0.3742,2671.7,2671.6,2.88606993]
[1727537382299,0.3742,2671.7,2671.6,3.2605111]
[1727537382599,0.3742,2671.7,2671.6,1.41244655]
[1727537387204,0.37421,2671.6,2671.5,2.72344941]
[1727537387502,0.37421,2671.6,2671.5,6.96074062]
[1727537389598,0.37421,2671.6,2671.5,6.96087427]
[1727537390289,0.37421,2671.6,2671.5,7.50663991]
[1727537390590,0.37421,2671.6,2671.5,6.96087427]
[1727537390996,0.37421,2671.6,2671.5,7.50663856]
[1727537391596,0.37421,2671.6,2671.5,6.96087427]
[1727537392198,0.37421,2671.6,2671.5,3.76168631]
[1727537393304,0.37421,2671.6,2671.5,4.13590631]
[1727537395495,0.7685,2671.7,2671.6,0.37421]
[1727537395696,0.3943,2671.7,2671.6,1.7866569]
[1727537395901,3.2078,2671.8,2671.6,3.75179631]
[1727537396105,3.58199,2671.8,2671.7,2.88586738]
[1727537396601,3.58199,2671.8,2671.7,1.47342048]
[1727537396800,3.58199,2671.8,2671.7,2.88590504]
[1727537398725,0.37419,2671.8,2671.7,2.88590504]
[1727537400317,4.0006,2671.9,2671.7,2.76248456]
[1727537400497,3.2078,2671.9,2671.8,3.25998154]
[1727537400802,3.2078,2671.9,2671.8,3.66807586]
[1727537403108,3.58197,2671.9,2671.8,3.29389586]
[1727537403509,3.2078,2671.9,2671.8,3.66807586]
[1727537404508,3.58197,2671.9,2671.8,3.29389586]
[1727537404813,3.58197,2671.9,2671.8,3.29358808]
[1727537405409,3.58197,2671.9,2671.8,3.66776808]
[1727537406007,3.2078,2671.9,2671.8,7.2868511]
[1727537406601,3.58197,2671.9,2671.8,6.9126711]
[1727537406804,3.58197,2671.9,2671.8,7.2868511]
[1727537407201,3.2078,2671.9,2671.8,7.2868511]
[1727537407404,3.2078,2671.9,2671.8,6.9126711]
[1727537407605,3.58197,2671.9,2671.8,6.9126711]
[1727537409212,3.58197,2671.9,2671.8,4.64268769]
[1727537409406,3.58197,2671.9,2671.8,4.64215885]
[1727537413409,6.80281,2671.9,2671.8,2.88395885]
[1727537413713,6.80281,2671.9,2671.2,1.2435034]
[1727537413714,0.93546,2671.8,2671.2,1.2435034]
[1727537414008,4.93205,2671.3,2671.2,1.24363975]
[1727537414214,4.93205,2671.3,2671.2,0.98163975]
[1727537415008,0.37426,2671.2,2671.1,0.98163975]
[1727537415313,1.15936,2671.2,2671.1,0.98163975]
[1727537415612,1.15936,2671.2,2671.1,2.39255923]
[1727537416207,1.15936,2671.2,2671.1,1.35591975]
[1727537418115,4.36716,2671.2,2671.1,1.35591975]
[1727537418318,4.36716,2671.2,2671.1,0.98163975]
[1727537419219,4.36716,2671.2,2671.1,1.35591975]
[1727537419409,4.36716,2671.2,2671.1,0.98163975]
[1727537420217,4.36716,2671.2,2671.1,0.37428]
[1727537421831,3.9929,2671.2,2671.1,0.37428]
[1727537423622,4.36716,2671.2,2671.1,0.37428]
[1727537425933,3.9929,2671.2,2671.1,0.37428]
[1727537431334,4.36716,2671.2,2671.1,0.37428]
[1727537431737,4.77186,2671.2,2671.1,0.37428]
[1727537432642,4.3976,2671.2,2671.1,0.37428]
[1727537433043,1.1898,2671.2,2671.1,0.37428]
[1727537433235,4.3976,2671.2,2671.1,0.37428]
[1727537435647,3.9929,2671.2,2671.1,0.37428]
[1727537439941,3.5986,2671.2,2671.1,0.37428]
[1727537442538,0.3908,2671.2,2671.1,0.37428]
[1727537450352,0.3908,2671.2,2671.1,1.35591975]
[1727537453356,0.76506,2671.2,2671.1,0.98163975]
[1727537453559,1.14936,2671.2,2671.1,0.37428]
[1727537455062,1.14936,2671.2,2671.1,1.35591975]
[1727537455267,1.14936,2671.2,2671.1,0.37428]
[1727537455671,1.14936,2671.2,2671.1,1.35591975]
[1727537455854,1.14936,2671.2,2671.1,0.37428]
[1727537456161,1.14936,2671.2,2671.1,1.35591975]
[1727537458157,1.14936,2671.2,2671.1,1.78606354]
[1727537460167,1.14936,2671.2,2671.1,3.26011651]
[1727537460867,1.14936,2671.2,2671.1,1.78724443]
[1727537461484,0.7751,2671.2,2671.1,1.78724443]
[1727537461782,1.14936,2671.2,2671.1,1.78724443]
[1727537464485,1.14936,2671.2,2671.1,3.26125915]
[1727537464885,1.14936,2671.2,2671.1,1.78724443]
[1727537465383,1.14936,2671.2,2671.1,1.7871826]
[1727537465785,1.14936,2671.2,2671.1,2.88688037]
[1727537466085,1.14936,2671.2,2671.0,0.98267786]
[1727537466086,1.30998,2671.1,2671.0,0.98267786]
[1727537466279,1.30998,2671.1,2670.9,1.47397777]
[1727537466280,0.37429,2671.0,2670.9,0.98267786]
[1727537466481,0.37431,2670.9,2670.8,0.98267786]
[1727537466679,0.37431,2670.9,2670.8,2.3951737]
[1727537466680,1.72431,2670.9,2670.8,2.3951737]
[1727537466881,1.72431,2670.9,2670.8,2.39517217]
[1727537467072,1.72431,2670.9,2670.8,0.98267786]
[1727537468389,5.46831,2670.9,2670.6,1.24467786]
[1727537468591,4.93214,2670.7,2670.6,0.98267786]
[1727537469292,0.37435,2670.6,2670.5,1.36307786]
[1727537470690,0.37435,2670.6,2670.5,0.3804]
[1727537471096,3.58215,2670.6,2670.5,0.3804]
[1727537471785,0.37436,2670.5,2670.4,0.98267786]
[1727537471987,6.42922,2670.5,2670.2,1.35177786]
[1727537472287,6.42922,2670.5,2670.2,0.3691]
[1727537472288,4.93219,2670.3,2670.2,0.3691]
[1727537472599,0.37442,2670.1,2670.0,0.98267786]
[1727537472804,1.72442,2670.1,2670.0,1.35177786]
[1727537473391,1.72442,2670.1,2670.0,0.3691]
[1727537474394,0.37443,2670.0,2669.9,0.98267786]
[1727537474597,3.97485,2670.0,2669.8,0.37445]
[1727537474896,1.35,2669.9,2669.8,0.37445]
[1727537476097,1.72444,2670.0,2669.8,0.37446]
[1727537476297,1.35,2670.0,2669.9,0.78365]
[1727537476501,1.35,2670.0,2669.9,0.4092]
[1727537476695,1.35,2670.0,2669.9,0.78365]
[1727537478300,1.35,2670.0,2669.9,0.4092]
[1727537478596,1.35,2670.0,2669.9,0.78365]
[1727537478597,4.5578,2670.0,2669.9,0.78365]
[1727537479304,4.93223,2670.0,2669.9,0.78365]
[1727537481001,1.72443,2670.0,2669.9,0.78365]
[1727537481303,4.93223,2670.0,2669.9,0.78365]
[1727537482402,4.93223,2670.0,2669.9,0.4092]
[1727537483492,4.93223,2670.0,2669.9,0.78365]
[1727537485911,4.93223,2670.0,2669.9,0.4092]
[1727537486203,4.93223,2670.0,2669.9,0.78365]
[1727537486794,4.93223,2670.0,2669.9,0.4092]
[1727537488407,4.93223,2670.0,2669.9,0.78365]
[1727537488900,4.5578,2670.0,2669.9,0.78365]
[1727537491410,4.93223,2670.0,2669.9,0.78365]
[1727537492606,1.72443,2670.0,2669.9,0.78365]
[1727537492912,1.35,2670.0,2669.9,0.78365]
[1727537493512,4.14382,2670.3,2669.9,4.1548]
[1727537493513,3.5822,2670.3,2669.9,4.1548]
[1727537493707,4.5578,2670.3,2670.0,0.4068]
[1727537493901,1.35,2670.1,2670.0,0.4068]
[1727537494197,1.35,2670.1,2670.0,0.78122]
[1727537494402,1.35,2670.1,2670.0,4.52682]
[1727537496801,3.2078,2670.3,2670.2,0.37441]
[1727537497208,3.2078,2670.3,2670.2,4.11921]
[1727537497404,1.35,2670.6,2670.5,0.37436]